[Event "NOR-ch Clubs 2017"]
[Site "Kristiansund"]
[Date "2017.10.21"]
[Round "3"]
[White "Naessvold, Kjell"]
[Black "Hagen, Brede Andre Larsen"]
[Result "1/2-1/2"]
[ECO "B27"]
[WhiteElo "1971"]
[BlackElo "2069"]
[Annotator "NA"]
[PlyCount "57"]
[EventDate "2017.??.??"]
[EventType "team-tourn"]
[EventCountry "NOR"]
[SourceTitle "playchess.com"]
[Source "ChessBase"]
[SourceQuality "1"]
[TimeControl "40/5400:1800"]

1. e4 {[%emt 0:00:03]} c5 {[%emt 0:00:10]} 2. Nf3 {[%emt 0:00:10]} g6 {[%emt 0:00:13]} 3. d4 {[%emt 0:00:20]} Bg7 {[%emt 0:00:25]} 4. d5 {[%emt 0:03:48]} d6 {[%emt 0:00:26]} 5. c3 {[%emt 0:00:59]} Nf6 {[%emt 0:00:49]} 6. Bd3 {[%emt 0:00:17]} O-O {[%emt 0:02:00]} 7. O-O {[%emt 0:00:39]} Bg4 {[%emt 0:04:54]} 8. Nbd2 {[%emt 0:01:08]} e6 $14 {[%emt 0:00:48]} 9. c4 {[%emt 0:04:53]} exd5 {[%emt 0:00:51]} 10. exd5 {[%emt 0:02:03]} Re8 {[%emt 0:07:22]} 11. h3 {[%emt 0:02:41]} Bxf3 {[%emt 0:02:17]} 12. Nxf3 {[%emt 0:00:31]} Nbd7 {[%emt 0:03:44]} 13. a4 {[%emt 0:03:15]} Qc7 {[%emt 0:10:56]} 14. Ra2 {[%emt 0:04:59]} Re7 {[%emt 0:04:30]} 15. b3 {[%emt 0:04:08]} Ne4 {[%emt 0:03:02]} 16. Bxe4 {[%emt 0:00:58]} Rxe4 {[%emt 0:00:05]} 17. Re1 {[%emt 0:00:20]} Nf6 {[%emt 0:02:57]} 18. Rae2 {[%emt 0:02:33]} Rae8 {[%emt 0:02:34]} 19. Ng5 {[%emt 0:05:53]} R4e7 {[%emt 0:04:18]} 20. Qd3 {[%emt 0:07:50]} Qd8 {[%emt 0:10:32]} 21. Kf1 {[%emt 0:07:06]} Kf8 {[%emt 0:08:21]} 22. Bb2 {[%emt 0:08:30]} Rxe2 {[%emt 0:06:22]} 23. Rxe2 {[%emt 0:00:32]} Rxe2 {[%emt 0:00:22]} 24. Qxe2 {[%emt 0:02:30]} Nxd5 {[%emt 0:03:00]} 25. Nxf7 {[%emt 0:04:55]} Kxf7 {[%emt 0:00:34]} 26. Bxg7 {[%emt 0:02:46]} Kxg7 {[%emt 0:00:34]} 27. cxd5 {[%emt 0:00:09]} Qf6 {[%emt 0:01:20]} 28. g4 {[%emt 0:02:50]} Kf7 {[%emt 0:00:12]} 29. Qe3 {[%emt 0:00:56]} 1/2-1/2

[Event "NOR-ch Clubs 2017"]
[Site "Kristiansund"]
[Date "2017.10.21"]
[Round "3"]
[White "Haug, Rune"]
[Black "Lium, Lars"]
[Result "1-0"]
[ECO "C03"]
[WhiteElo "1800"]
[BlackElo "1643"]
[Annotator "NA"]
[PlyCount "93"]
[EventDate "2017.??.??"]
[EventType "team-tourn"]
[EventCountry "NOR"]
[SourceTitle "playchess.com"]
[Source "ChessBase"]
[SourceQuality "1"]
[TimeControl "40/5400:1800"]

1. e4 {[%emt 0:00:15]} e6 {[%emt 0:00:15]} 2. d4 {[%emt 0:00:19]} d5 {[%emt 0:00:15]} 3. Nd2 {[%emt 0:00:12]} a6 {[%emt 0:01:08]} 4. Ngf3 {[%emt 0:00:30]} Nf6 {[%emt 0:02:04]} 5. Bd3 {[%emt 0:01:13]} dxe4 {[%emt 0:00:53]} 6. Nxe4 {[%emt 0:00:17]} Be7 {[%emt 0:00:56]} 7. O-O {[%emt 0:00:26]} b6 {[%emt 0:02:14]} 8. Qe2 {[%emt 0:02:42]} Bb7 {[%emt 0:01:12]} 9. Bf4 $14 {[%emt 0:01:48]} Nd5 {[%emt 0:01:40]} 10. Bg3 {[%emt 0:00:53]} O-O {[%emt 0:01:53]} 11. c3 {[%emt 0:00:42]} Nd7 {[%emt 0:02:23]} 12. Rad1 {[%emt 0:01:57]} N7f6 {[%emt 0:00:58]} 13. Rfe1 {[%emt 0:03:29]} Qc8 {[%emt 0:02:38]} 14. Ne5 {[%emt 0:07:16]} Nxe4 {[%emt 0:03:57]} 15. Bxe4 {[%emt 0:00:18]} Nf6 {[%emt 0:00:42]} 16. Nc6 {[%emt 0:03:58]} Bxc6 {[%emt 0:01:07]} 17. Bxc6 {[%emt 0:00:11]} Ra7 {[%emt 0:00:26]} 18. Bh4 {[%emt 0:01:07]} Nd5 {[%emt 0:00:56]} 19. Bxe7 {[%emt 0:01:08]} Nxe7 {[%emt 0:00:08]} 20. Be4 {[%emt 0:00:47]} c6 {[%emt 0:02:58]} 21. Qh5 {[%emt 0:03:56]} h6 {[%emt 0:01:38]} 22. Rd3 {[%emt 0:02:13]} Nd5 {[%emt 0:04:22]} 23. Rg3 {[%emt 0:03:36]} f5 {[%emt 0:00:43]} 24. Bxd5 {[%emt 0:01:17]} cxd5 {[%emt 0:00:18]} 25. Qxh6 {[%emt 0:02:21]} Re7 {[%emt 0:00:42]} 26. Rxe6 {[%emt 0:16:10]} Qxe6 {[%emt 0:00:57]} 27. Rxg7+ {[%emt 0:00:18]} Rxg7 {[%emt 0:00:33]} 28. Qxe6+ {[%emt 0:00:08]} Rgf7 {[%emt 0:00:40]} 29. Qxd5 {[%emt 0:00:12]} Kg7 {[%emt 0:02:51]} 30. g3 {[%emt 0:01:32]} Rf6 {[%emt 0:02:38]} 31. Qb7+ {[%emt 0:00:22]} R8f7 {[%emt 0:00:14]} 32. Qxa6 {[%emt 0:00:10]} f4 {[%emt 0:00:14]} 33. gxf4 {[%emt 0:01:04]} Rg6+ {[%emt 0:00:57]} 34. Kf1 {[%emt 0:00:28]} Rxf4 {[%emt 0:00:11]} 35. d5 {[%emt 0:03:10]} Rgf6 {[%emt 0:00:49]} 36. Qe2 {[%emt 0:00:27]} b5 {[%emt 0:02:33]} 37. b3 {[%emt 0:01:11]} R4f5 {[%emt 0:00:42]} 38. c4 {[%emt 0:00:32]} bxc4 {[%emt 0:00:22]} 39. bxc4 {[%emt 0:00:02]} Rg6 {[%emt 0:01:58]} 40. d6 {[%emt 0:00:22]} Rfg5 {[%emt 0:30:39]} 41. Qe7+ {[%emt 0:30:29]} Kh6 {[%emt 0:00:30]} 42. Qf8+ {[%emt 0:04:35]} Kh7 {[%emt 0:00:49]} 43. Qe7+ {[%emt 0:02:46]} Kh6 {[%emt 0:04:46]} 44. d7 {[%emt 0:00:47]} Rg1+ {[%emt 0:00:10]} 45. Ke2 {[%emt 0:00:02]} Rg7 {[%emt 0:00:32]} 46. Qxg7+ {[%emt 0:00:13]} Rxg7 {[%emt 0:00:30]} 47. d8=Q {[%emt 0:00:05]} 1-0

[Event "NOR-ch Clubs 2017"]
[Site "Kristiansund"]
[Date "2017.10.21"]
[Round "3"]
[White "Dronen, Ole Reza"]
[Black "Dahl, Trygve"]
[Result "0-1"]
[ECO "A03"]
[WhiteElo "1797"]
[BlackElo "2193"]
[Annotator "NA"]
[PlyCount "44"]
[EventDate "2017.??.??"]
[EventType "team-tourn"]
[EventCountry "NOR"]
[SourceTitle "playchess.com"]
[Source "ChessBase"]
[SourceQuality "1"]
[TimeControl "40/5400:1800"]

1. f4 {[%emt 0:00:23]} d5 {[%emt 0:01:47]} 2. Nf3 {[%emt 0:00:06]} g6 {[%emt 0:00:13]} 3. e3 {[%emt 0:00:12]} Bg7 {[%emt 0:00:08]} 4. Be2 {[%emt 0:00:04]} Nf6 {[%emt 0:02:04]} 5. O-O {[%emt 0:00:06]} O-O {[%emt 0:00:25]} 6. d3 {[%emt 0:00:16]} b6 {[%emt 0:00:23]} 7. Qe1 {[%emt 0:03:06]} Bb7 {[%emt 0:00:16]} 8. Qh4 {[%emt 0:03:12]} Nfd7 $15 {[%emt 0:04:56]} 9. f5 {[%emt 0:04:47]} gxf5 {[%emt 0:04:54]} 10. Ng5 {[%emt 0:03:45]} h6 {[%emt 0:00:59]} 11. Nh3 {[%emt 0:00:42]} e6 {[%emt 0:00:45]} 12. Qg3 {[%emt 0:01:37]} Kh7 {[%emt 0:02:14]} 13. Bh5 {[%emt 0:05:49]} Be5 {[%emt 0:05:16]} 14. Qf3 {[%emt 0:02:46]} Qh4 {[%emt 0:01:38]} 15. Nc3 {[%emt 0:04:53]} Nf6 {[%emt 0:00:57]} 16. d4 {[%emt 0:01:23]} Bd6 {[%emt 0:00:53]} 17. Nf4 {[%emt 0:05:22]} Bxf4 {[%emt 0:00:28]} 18. g3 {[%emt 0:01:11]} Bxg3 {[%emt 0:01:21]} 19. hxg3 {[%emt 0:00:51]} Qxh5 {[%emt 0:00:11]} 20. Qxh5 {[%emt 0:02:11]} Nxh5 {[%emt 0:00:10]} 21. Ne2 {[%emt 0:00:49]} Ba6 {[%emt 0:00:19]} 22. Kf2 {[%emt 0:01:04]} Bxe2 {[%emt 0:00:07]} 0-1

[Event "NOR-ch Clubs 2017"]
[Site "Kristiansund"]
[Date "2017.10.21"]
[Round "3"]
[White "Kyrkjebo, Eirik"]
[Black "Svensen, Tarjei"]
[Result "0-1"]
[ECO "C00"]
[WhiteElo "1657"]
[BlackElo "2057"]
[Annotator "NA"]
[PlyCount "80"]
[EventDate "2017.??.??"]
[EventType "team-tourn"]
[EventCountry "NOR"]
[SourceTitle "playchess.com"]
[Source "ChessBase"]
[SourceQuality "1"]
[TimeControl "40/5400:1800"]

1. e4 {[%emt 0:00:06]} e6 {[%emt 0:00:07]} 2. d3 {[%emt 0:00:41]} d5 {[%emt 0:00:26]} 3. Nd2 {[%emt 0:00:35]} c5 {[%emt 0:00:10]} 4. Ngf3 {[%emt 0:01:07]} Nc6 {[%emt 0:00:20]} 5. e5 {[%emt 0:01:06]} Qc7 {[%emt 0:01:49]} 6. Qe2 {[%emt 0:00:18]} Nge7 {[%emt 0:02:07]} 7. b3 $17 {[%emt 0:04:21]} Ng6 {[%emt 0:05:26]} 8. c4 {[%emt 0:05:21]} Be7 {[%emt 0:04:47]} 9. Nb1 {[%emt 0:07:24]} d4 {[%emt 0:03:49]} 10. g3 {[%emt 0:02:58]} Ncxe5 {[%emt 0:01:10]} 11. Nxe5 {[%emt 0:01:35]} Qxe5 {[%emt 0:00:12]} 12. Qxe5 {[%emt 0:01:22]} Nxe5 {[%emt 0:00:03]} 13. Bf4 {[%emt 0:00:23]} Nc6 {[%emt 0:02:04]} 14. Bg2 {[%emt 0:03:35]} Bd7 {[%emt 0:06:26]} 15. O-O {[%emt 0:01:44]} g5 {[%emt 0:07:59]} 16. Bc1 {[%emt 0:03:39]} O-O-O {[%emt 0:00:38]} 17. f4 {[%emt 0:03:00]} f5 {[%emt 0:06:27]} 18. fxg5 {[%emt 0:03:33]} Nb4 {[%emt 0:03:53]} 19. Na3 {[%emt 0:04:13]} Nxd3 {[%emt 0:01:26]} 20. Bf4 {[%emt 0:02:01]} e5 {[%emt 0:04:33]} 21. Rad1 {[%emt 0:04:04]} exf4 {[%emt 0:01:15]} 22. Rxd3 {[%emt 0:00:41]} fxg3 {[%emt 0:00:51]} 23. Rxg3 {[%emt 0:00:27]} Bd6 {[%emt 0:01:31]} 24. Rd3 {[%emt 0:02:15]} Rdg8 {[%emt 0:00:33]} 25. h4 {[%emt 0:00:42]} h6 {[%emt 0:01:56]} 26. Nb5 {[%emt 0:01:53]} Bb8 {[%emt 0:00:28]} 27. b4 {[%emt 0:04:21]} a6 {[%emt 0:00:22]} 28. Na3 {[%emt 0:02:11]} hxg5 {[%emt 0:02:35]} 29. hxg5 {[%emt 0:01:14]} Rxg5 {[%emt 0:01:15]} 30. b5 {[%emt 0:01:19]} Rhg8 {[%emt 0:01:58]} 31. Rd2 {[%emt 0:01:04]} axb5 {[%emt 0:01:33]} 32. cxb5 {[%emt 0:00:23]} Be6 {[%emt 0:01:22]} 33. Rc2 b6 {[%emt 0:00:28]} 34. Kh1 {[%emt 0:02:40]} Bd5 {[%emt 0:02:45]} 35. Rff2 {[%emt 0:01:11]} Be4 {[%emt 0:01:21]} 36. Rcd2 {[%emt 0:00:37]} Rh8+ {[%emt 0:01:02]} 37. Kg1 {[%emt 0:00:19]} Bg3 {[%emt 0:02:44]} 38. Rfe2 {[%emt 0:00:33]} Bf4 {[%emt 0:00:24]} 39. Rb2 {[%emt 0:00:17]} Be3+ {[%emt 0:01:20]} 40. Kf1 {[%emt 0:00:16]} Rh1+ {[%emt 0:30:56]} 0-1

[Event "NOR-ch Clubs 2017"]
[Site "Kristiansund"]
[Date "2017.10.21"]
[Round "3"]
[White "Forfang, Asmund"]
[Black "Holmen, Ove Reidar"]
[Result "1/2-1/2"]
[ECO "A15"]
[WhiteElo "1648"]
[BlackElo "1853"]
[Annotator "NA"]
[PlyCount "65"]
[EventDate "2017.??.??"]
[EventType "team-tourn"]
[EventCountry "NOR"]
[SourceTitle "playchess.com"]
[Source "ChessBase"]
[SourceQuality "1"]
[TimeControl "40/5400:1800"]

1. c4 {[%emt 0:00:13]} Nf6 {[%emt 0:00:19]} 2. Nf3 {[%emt 0:00:20]} g6 {[%emt 0:00:22]} 3. e3 {[%emt 0:02:57]} Bg7 {[%emt 0:00:50]} 4. Be2 {[%emt 0:00:20]} O-O {[%emt 0:04:01]} 5. O-O {[%emt 0:00:08]} d6 {[%emt 0:03:26]} 6. Nc3 {[%emt 0:00:18]} Nbd7 {[%emt 0:03:02]} 7. Qc2 $11 {[%emt 0:00:48]} c6 {[%emt 0:01:14]} 8. d4 {[%emt 0:02:15]} e5 {[%emt 0:02:59]} 9. Rb1 {[%emt 0:01:58]} exd4 {[%emt 0:03:50]} 10. exd4 {[%emt 0:01:19]} d5 {[%emt 0:04:57]} 11. c5 {[%emt 0:02:30]} Re8 {[%emt 0:07:21]} 12. Bf4 {[%emt 0:03:56]} Ne4 {[%emt 0:08:05]} 13. Bd3 {[%emt 0:01:04]} Ndf6 {[%emt 0:06:17]} 14. Be5 {[%emt 0:05:09]} Bf5 {[%emt 0:05:04]} 15. Ne2 {[%emt 0:11:38]} Nh5 {[%emt 0:14:21]} 16. Bxg7 Nxg7 17. Ng3 {[%emt 0:02:37]} Nxg3 {[%emt 0:00:39]} 18. hxg3 {[%emt 0:00:15]} Bxd3 {[%emt 0:01:13]} 19. Qxd3 {[%emt 0:00:07]} f6 {[%emt 0:01:49]} 20. b4 {[%emt 0:01:45]} a6 {[%emt 0:00:56]} 21. Rfe1 {[%emt 0:00:17]} Qd7 {[%emt 0:00:55]} 22. Rxe8+ {[%emt 0:02:05]} Rxe8 {[%emt 0:00:06]} 23. Re1 {[%emt 0:00:02]} Kf7 {[%emt 0:02:49]} 24. Rxe8 {[%emt 0:03:01]} Qxe8 {[%emt 0:00:02]} 25. Kf1 {[%emt 0:01:13]} Nf5 {[%emt 0:02:42]} 26. Nd2 {[%emt 0:03:22]} h5 {[%emt 0:02:26]} 27. a4 {[%emt 0:00:31]} Qd7 {[%emt 0:03:43]} 28. Nb3 {[%emt 0:00:28]} Ng7 {[%emt 0:00:50]} 29. Qf3 {[%emt 0:05:12]} Ne6 {[%emt 0:00:42]} 30. Qe3 {[%emt 0:01:37]} Kg7 {[%emt 0:01:08]} 31. Qf3 {[%emt 0:05:34]} Ng5 {[%emt 0:00:43]} 32. Qf4 {[%emt 0:01:01]} Ne6 {[%emt 0:01:47]} 33. Qb8 1/2-1/2

[Event "NOR-ch Clubs 2017"]
[Site "Kristiansund"]
[Date "2017.10.21"]
[Round "3"]
[White "Skog, Jan Erik"]
[Black "Dahl, Torbjorn"]
[Result "0-1"]
[ECO "A04"]
[WhiteElo "1624"]
[BlackElo "1974"]
[Annotator "NA"]
[PlyCount "48"]
[EventDate "2017.??.??"]
[EventType "team-tourn"]
[EventCountry "NOR"]
[SourceTitle "playchess.com"]
[Source "ChessBase"]
[SourceQuality "1"]
[TimeControl "40/5400:1800"]

1. Nf3 {[%emt 0:00:19]} e6 {[%emt 0:02:11]} 2. d4 {[%emt 0:00:21]} Nf6 {[%emt 0:00:28]} 3. g3 {[%emt 0:00:20]} d5 {[%emt 0:00:32]} 4. Bg2 {[%emt 0:00:19]} Be7 {[%emt 0:00:57]} 5. Bg5 {[%emt 0:05:30]} O-O {[%emt 0:00:19]} 6. O-O {[%emt 0:00:09] LiveBook: 4 Partien} c6 {[%emt 0:00:31]} 7. Nbd2 {[%emt 0:00:45]} a5 {[%emt 0:01:34]} 8. c4 $11 {[%emt 0:03:21]} h6 {[%emt 0:02:07]} 9. Bf4 {[%emt 0:00:53]} dxc4 {[%emt 0:02:16]} 10. Bxb8 {[%emt 0:01:11]} Rxb8 {[%emt 0:00:23]} 11. Nxc4 {[%emt 0:00:21]} Nd7 12. e3 {[%emt 0:01:37]} c5 {[%emt 0:10:39]} 13. d5 {[%emt 0:06:34]} Nb6 {[%emt 0:03:43]} 14. d6 {[%emt 0:09:40]} Nxc4 {[%emt 0:00:49]} 15. dxe7 {[%emt 0:00:10]} Qxe7 {[%emt 0:00:19]} 16. Qb3 {[%emt 0:01:35]} b5 {[%emt 0:00:37]} 17. Rfd1 {[%emt 0:04:34]} a4 {[%emt 0:00:40]} 18. Qc3 {[%emt 0:01:55]} Ba6 {[%emt 0:00:22]} 19. Bf1 {[%emt 0:01:29]} Qb7 {[%emt 0:06:31]} 20. b3 {[%emt 0:02:38]} b4 {[%emt 0:02:08]} 21. Qc1 {[%emt 0:02:08]} Qxf3 {[%emt 0:01:49]} 22. Bxc4 {[%emt 0:01:06]} Bb7 {[%emt 0:00:26]} 23. Kf1 {[%emt 0:01:27]} Qh1+ {[%emt 0:01:00]} 24. Ke2 {[%emt 0:00:17]} Bf3+ {[%emt 0:00:20]} 0-1

[Event "NOR-ch Clubs 2017"]
[Site "Kristiansund"]
[Date "2017.10.21"]
[Round "4"]
[White "Elseth, Roar"]
[Black "Lillelokken, Kjell A"]
[Result "1/2-1/2"]
[ECO "A06"]
[WhiteElo "2322"]
[BlackElo "2128"]
[Annotator "ChessBase"]
[PlyCount "143"]
[EventDate "2017.??.??"]
[EventType "team-tourn"]
[EventCountry "NOR"]
[SourceTitle "playchess.com"]
[Source "ChessBase"]
[SourceQuality "1"]
[TimeControl "40/5400:1800"]

1. Nf3 {[%emt 0:01:04]} d5 {[%emt 0:01:07]} 2. d4 {[%emt 0:00:51]} e6 {[%emt 0:00:31]} 3. c4 {[%emt 0:00:16]} c6 {[%emt 0:00:22]} 4. Qc2 {[%emt 0:03:22]} f5 {[%emt 0:01:35]} 5. g3 {[%emt 0:00:20]} Nf6 {[%emt 0:00:19]} 6. Bg2 {[%emt 0:01:26]} Bd6 {[%emt 0:00:14]} 7. O-O {[%emt 0:01:13]} O-O {[%emt 0:00:06]} 8. b3 {[%emt 0:04:12]} Qe7 {[%emt 0:00:15]} 9. Bb2 {[%emt 0:01:30]} Bd7 {[%emt 0:00:13]} 10. Nbd2 {[%emt 0:02:44]} Be8 {[%emt 0:00:45]} 11. Ne5 {[%emt 0:02:24]} Nbd7 {[%emt 0:00:59]} 12. e3 {[%emt 0:03:59]} Bh5 {[%emt 0:02:42]} 13. Ndf3 {[%emt 0:06:12]} Bxf3 {[%emt 0:00:33]} 14. Nxf3 {[%emt 0:00:12]} Ne4 {[%emt 0:00:10]} 15. Rad1 {[%emt 0:08:22]} Rad8 {[%emt 0:00:09]} 16. Ne1 {[%emt 0:01:31]} g5 {[%emt 0:00:56]} 17. Nd3 {[%emt 0:08:47]} g4 {[%emt 0:02:32]} 18. Nf4 {[%emt 0:03:06]} Ndf6 {[%emt 0:00:44]} 19. Qe2 {[%emt 0:02:58]} Ng5 {[%emt 0:05:10]} 20. Nd3 {[%emt 0:05:11]} Qg7 {[%emt 0:01:25]} 21. f4 {[%emt 0:03:28]} Nge4 22. Nf2 Nxf2 {[%emt 0:01:50]} 23. Qxf2 {[%emt 0:00:29]} h5 {[%emt 0:00:07]} 24. Bc3 {[%emt 0:00:49]} Qe7 {[%emt 0:01:34]} 25. c5 {[%emt 0:00:37]} Bc7 {[%emt 0:00:20]} 26. Qe2 {[%emt 0:00:25]} h4 {[%emt 0:00:13]} 27. gxh4 {[%emt 0:00:18]} Kf7 {[%emt 0:00:25]} 28. Be1 {[%emt 0:00:19]} Rh8 {[%emt 0:00:28]} 29. b4 {[%emt 0:01:17]} Nd7 {[%emt 0:00:30]} 30. Bg3 {[%emt 0:02:46]} Nf8 {[%emt 0:00:11]} 31. Kf2 {[%emt 0:04:09]} Ng6 {[%emt 0:00:26]} 32. Ke1 {[%emt 0:00:31]} Nxh4 {[%emt 0:00:18]} 33. Bh1 {[%emt 0:00:17]} Ng6 {[%emt 0:00:40]} 34. Qc2 {[%emt 0:02:12]} b5 {[%emt 0:03:51]} 35. Ke2 {[%emt 0:03:10]} a5 {[%emt 0:00:22]} 36. a4 {[%emt 0:02:14]} Rb8 {[%emt 0:02:14]} 37. bxa5 {[%emt 0:03:52]} b4 {[%emt 0:00:45]} 38. Rb1 {[%emt 0:01:19]} Bxa5 {[%emt 0:00:05]} 39. Qd3 {[%emt 0:00:24]} Qa7 {[%emt 0:00:05]} 40. Rb3 {[%emt 0:00:21]} Rb7 {[%emt 0:30:39]} 41. Rfb1 {[%emt 0:30:19]} Rhb8 {[%emt 0:00:12]} 42. Kf2 {[%emt 0:00:00]} Nf8 {[%emt 0:00:00]} 43. h3 {[%emt 0:00:00]} gxh3 {[%emt 0:00:00]} 44. Bf3 {[%emt 0:00:00]} Bd8 {[%emt 0:00:00]} 45. Ra1 {[%emt 0:00:00]} Ke8 {[%emt 0:00:00]} 46. Bh5+ {[%emt 0:00:00]} Kd7 {[%emt 0:00:00]} 47. Qf1 {[%emt 0:00:00]} Kc8 {[%emt 0:00:00]} 48. Be8 {[%emt 0:00:00]} Rh7 {[%emt 0:00:00]} 49. Bxc6 {[%emt 0:00:00]} h2 {[%emt 0:00:00]} 50. Qh1 {[%emt 0:00:00]} Qg7 {[%emt 0:00:00]} 51. Rbb1 {[%emt 0:00:00]} Kc7 {[%emt 0:00:00]} 52. Bb5 {[%emt 0:00:00]} Nd7 {[%emt 0:00:00]} 53. Bxd7 {[%emt 0:00:00]} Kxd7 {[%emt 0:00:00]} 54. Qf3 {[%emt 0:00:00]} b3 {[%emt 0:00:00]} 55. Rh1 {[%emt 0:00:00]} Bh4 {[%emt 0:00:00]} 56. a5 {[%emt 0:00:00]} Rbh8 {[%emt 0:00:00]} 57. a6 {[%emt 0:00:00]} Kc6 {[%emt 0:00:00]} 58. a7 {[%emt 0:00:00]} Kb7 {[%emt 0:00:00]} 59. Bxh4 {[%emt 0:00:00]} Rxh4 {[%emt 0:00:00]} 60. Qe2 {[%emt 0:00:00]} Ka8 {[%emt 0:00:00]} 61. Qa6 {[%emt 0:00:00]} Rxf4+ {[%emt 0:00:00]} 62. exf4 {[%emt 0:00:00]} Qxd4+ {[%emt 0:00:00]} 63. Ke2 {[%emt 0:00:00]} Qe4+ {[%emt 0:00:47]} 64. Kd2 {[%emt 0:00:00]} Qxf4+ {[%emt 0:03:23]} 65. Ke2 {[%emt 0:00:00]} Qe4+ {[%emt 0:00:16]} 66. Kd2 {[%emt 0:00:00]} Qd4+ {[%emt 0:00:49]} 67. Ke2 {[%emt 0:00:00]} Qe4+ {[%emt 0:01:17]} 68. Kd2 {[%emt 0:00:00]} Qf4+ {[%emt 0:01:16]} 69. Ke2 {[%emt 0:00:00]} Qg4+ {[%emt 0:01:43]} 70. Kd2 {[%emt 0:00:00]} Qd4+ {[%emt 0:00:56]} 71. Ke2 {[%emt 0:00:00]} Qxc5 72. Ke1 1/2-1/2

[Event "NOR-ch Clubs 2017"]
[Site "Kristiansund"]
[Date "2017.10.21"]
[Round "4"]
[White "Nordquelle, Daniel"]
[Black "Schouten, Mathias Lind"]
[Result "1-0"]
[ECO "C50"]
[WhiteElo "2196"]
[BlackElo "1750"]
[Annotator "NA"]
[PlyCount "69"]
[EventDate "2017.??.??"]
[EventType "team-tourn"]
[EventCountry "NOR"]
[SourceTitle "playchess.com"]
[Source "ChessBase"]
[SourceQuality "1"]
[TimeControl "40/5400:1800"]

1. e4 {[%emt 0:01:41]} e5 {[%emt 0:00:38]} 2. Nf3 {[%emt 0:00:20]} Nc6 {[%emt 0:00:06]} 3. Bc4 {[%emt 0:00:04]} Nf6 {[%emt 0:00:05]} 4. d3 {[%emt 0:00:04]} Bc5 {[%emt 0:00:04]} 5. O-O {[%emt 0:00:10]} O-O {[%emt 0:00:04]} 6. Nbd2 {[%emt 0:01:00] C50: Italienische Partie} (6. a4 a5 7. c3 d5 8. exd5 Nxd5 9. Nbd2 Nb6 10. Bb5 Bd6 11. Ne4 Bg4 12. h3 Bh5 13. Ng3 Bg6 {0-1 (39) Anand,V (2783)-Aronian,L (2799) Saint Louis 2017}) 6... Re8 {[%emt 0:00:06]} 7. Re1 {[%emt 0:02:06]} Bf8 {[%emt 0:00:08]} 8. c3 {[%emt 0:01:01]} d6 $146 {[%emt 0:00:07]} ({Vorgänger:} 8... d5 9. Bb3 dxe4 10. dxe4 Bg4 11. h3 Bh5 12. Nf1 Nd7 13. Ng3 Bg6 14. Qe2 {½-½ (62) Misko,J-Pomorska,K Poland 1996}) 9. Bb3 {[%emt 0:00:04]} Be6 {[%emt 0:00:10]} 10. Bc2 {[%emt 0:00:21]} Ne7 {[%emt 0:00:30]} 11. d4 {[%emt 0:00:36]} Ng6 {[%emt 0:00:42]} 12. Nf1 {[%emt 0:00:07]} c6 {[%emt 0:01:04]} 13. Ne3 {[%emt 0:01:57]} Qc7 {[%emt 0:13:32]} 14. d5 {[%emt 0:06:55]} cxd5 {[%emt 0:00:25]} 15. exd5 {[%emt 0:00:15]} Bg4 {[%emt 0:06:57]} 16. h3 {[%emt 0:01:53]} Bxf3 {[%emt 0:00:07]} 17. Qxf3 {[%emt 0:00:04]} Nf4 {[%emt 0:13:01]} 18. Kh2 {[%emt 0:03:54]} Qc5 {[%emt 0:12:10]} 19. Rd1 {[%emt 0:02:12]} b5 {[%emt 0:00:46]} 20. g3 {[%emt 0:00:31]} Ng6 {[%emt 0:00:14]} 21. Ng4 {[%emt 0:09:13]} Nxg4+ {[%emt 0:02:55]} 22. hxg4 {[%emt 0:00:07]} b4 {[%emt 0:05:04]} 23. Be3 {[%emt 0:00:23]} Qa5 {[%emt 0:00:33]} 24. c4 {[%emt 0:00:16]} Qc7 {[%emt 0:00:45]} 25. b3 {[%emt 0:00:12]} a5 {[%emt 0:01:03]} 26. Be4 {[%emt 0:02:17]} a4 {[%emt 0:02:03]} 27. Kg2 {[%emt 0:00:52]} axb3 {[%emt 0:00:53]} 28. axb3 {[%emt 0:00:06]} Ra5 $18 {[%emt 0:03:06]} (28... Rxa1 29. Rxa1 Qc8) 29. g5 {[%emt 0:01:36]} Nh8 {[%emt 0:08:26]} 30. Bxh7+ {[%emt 0:01:29]} Kxh7 {[%emt 0:00:34]} 31. Qh5+ {[%emt 0:00:23]} Kg8 {[%emt 0:00:04]} 32. Rh1 {[%emt 0:00:10]} f6 {[%emt 0:00:46]} 33. Rxa5 {[%emt 0:00:32]} Qxa5 {[%emt 0:00:16]} 34. Qxe8 {[%emt 0:00:09]} Qa2 {[%emt 0:00:51]} 35. Qe6+ {[%emt 0:00:19]} 1-0

[Event "NOR-ch Clubs 2017"]
[Site "Kristiansund"]
[Date "2017.10.21"]
[Round "4"]
[White "Lobersli, Henrik Oie"]
[Black "Olsen, Thorstein"]
[Result "1-0"]
[ECO "A45"]
[WhiteElo "2047"]
[BlackElo "1838"]
[Annotator "NA RC"]
[PlyCount "71"]
[EventDate "2017.??.??"]
[EventType "team-tourn"]
[EventCountry "NOR"]
[SourceTitle "playchess.com"]
[Source "ChessBase"]
[SourceQuality "1"]
[TimeControl "40/5400:1800"]

1. d4 {[%emt 0:03:35]} Nf6 {[%emt 0:00:08]} 2. Bg5 {[%emt 0:00:22]} e6 {[%emt 0:00:29]} 3. e4 {[%emt 0:00:28]} Be7 {[%emt 0:01:34]} 4. e5 {[%emt 0:00:34]} Nd5 {[%emt 0:01:09]} 5. Bxe7 {[%emt 0:00:10]} Qxe7 {[%emt 0:01:20]} 6. c4 {[%emt 0:01:05]} Nb6 {[%emt 0:04:00] A45: Trompowsky Attack} (6... Qb4+ 7. Nd2 Ne7 8. Qc1 d6 9. Ngf3 dxe5 10. a3 Qb6 11. dxe5 Nd7 12. Qc3 a5 13. Bd3 a4 14. O-O Qa5 15. Qd4 Nc6 16. Qg4 g6 17. Rfe1 Ndxe5 18. Nxe5 {½-½ (18) Bjazevic,P (2509)-Livie,G (2339) ICCF email 2010}) 7. Nc3 {[%emt 0:13:04]} O-O {[%emt 0:03:46]} 8. Nf3 {[%emt 0:03:43]} d6 {[%emt 0:01:20]} 9. exd6 {[%emt 0:01:56]} cxd6 {[%emt 0:00:39]} 10. Bd3 {[%emt 0:01:11]} Nc6 {[%emt 0:01:59]} 11. O-O {[%emt 0:02:31]} f5 $146 ({Predecessor:} 11... Nb4 12. Re1 Nxd3 13. Qxd3 Bd7 14. b4 {0-1 (61) Pojer,H (2045)-Almer,G (2092) Austria 2013}) 12. Re1 {[%emt 0:08:54]} Nb4 {[%emt 0:07:33]} 13. Bf1 {[%emt 0:02:03]} Bd7 {[%emt 0:03:25]} 14. a3 {[%emt 0:01:37]} Na6 {[%emt 0:01:36]} 15. b4 {[%emt 0:01:20]} Rac8 {[%emt 0:01:39]} 16. c5 {[%emt 0:01:39]} Qf6 {[%emt 0:04:23]} 17. Qb3 {[%emt 0:02:33]} dxc5 {[%emt 0:06:48]} 18. bxc5 {[%emt 0:02:29]} Nxc5 {[%emt 0:00:27]} 19. dxc5 {[%emt 0:00:38]} Rxc5 {[%emt 0:00:28]} 20. Nb5 {[%emt 0:02:57]} Nd5 {[%emt 0:08:47]} 21. Nbd4 {[%emt 0:03:27]} b6 {[%emt 0:02:51]} 22. Rad1 {[%emt 0:07:31]} Rc3 {[%emt 0:14:03]} 23. Qa2 {[%emt 0:03:46]} Rfc8 {[%emt 0:01:18]} (23... Rcc8 $142 24. Ne5 Ba4) 24. Ne5 {[%emt 0:04:53]} Ba4 {[%emt 0:01:31]} 25. Rd2 {[%emt 0:00:47]} Rc1 {[%emt 0:02:01]} 26. Rxc1 {[%emt 0:03:46]} Rxc1 {[%emt 0:00:04]} 27. Qb2 {[%emt 0:00:10]} Rxf1+ {[%emt 0:00:59]} 28. Kxf1 {[%emt 0:00:06]} Qxe5 {[%emt 0:00:10]} 29. Qc1 {[%emt 0:01:56]} Bd7 {[%emt 0:08:14]} 30. Kg1 {[%emt 0:03:58]} Kf7 {[%emt 0:01:10]} 31. Nf3 {[%emt 0:01:33]} Qf6 {[%emt 0:01:38]} 32. Rd1 $11 {[%emt 0:00:26]} Ke7 {[%emt 0:01:31]} 33. Nd4 {[%emt 0:01:03]} e5 {[%emt 0:01:14]} 34. Nxf5+ {[%emt 0:02:08]} Qxf5 {[%emt 0:00:59]} 35. Rxd5 {[%emt 0:00:02]} Qe6 {[%emt 0:00:21]} 36. Qg5+ {[%emt 0:00:35]} 1-0